bitfinex/quotes_ETHUSD_20250731
["timestamp","ask_amount","ask_price","bid_price","bid_amount"]
[1753970180819,0.55,3814.3,3814.2,3.29588176]
[1753970181156,0.8396,3815.8,3814.7,2.62143812]
[1753970181373,0.1312,3815.1,3814.8,4.121]
[1753970181548,0.55,3815.0,3814.8,6.74236857]
[1753970181858,0.6812,3814.9,3814.8,7.18166857]
[1753970182654,0.1312,3814.9,3814.8,8.26006857]
[1753970182871,0.1312,3814.9,3814.8,5.4049]
[1753970183051,0.1312,3814.9,3814.8,8.0262694]
[1753970183366,0.55,3815.0,3814.9,2.62129888]
[1753970183732,0.55,3815.0,3814.8,0.8446]
[1753970184052,0.55,3815.0,3814.9,4.121]
[1753970184463,0.1312,3815.0,3814.9,4.121]
[1753970184973,0.1312,3815.0,3814.9,6.74230068]
[1753970185262,0.1312,3815.1,3815.0,3.38980577]
[1753970185635,0.002,3816.2,3815.0,3.38980577]
[1753970185636,0.1312,3815.5,3815.4,2.62090064]
[1753970185932,0.1312,3815.5,3815.4,6.74090064]
[1753970186137,0.002,3816.2,3815.5,2.6208452]
[1753970186343,0.1312,3815.8,3815.5,2.6208453]
[1753970186561,0.55,3815.7,3815.5,2.6208453]
[1753970187566,0.55,3815.7,3815.2,2.62106189]
[1753970187865,0.55,3815.4,3815.3,4.12]
[1753970188366,1.169,3815.4,3815.3,4.12]
[1753970188563,0.55,3815.2,3814.8,0.001]
[1753970188864,0.55,3815.0,3814.9,4.12]
[1753970189038,0.55,3815.1,3814.9,4.12]
[1753970189444,0.1312,3815.0,3814.9,4.12]
[1753970190140,0.55,3815.1,3814.9,6.74130068]
[1753970190339,0.55,3815.3,3814.9,4.12]
[1753970190533,1.169,3815.0,3814.8,0.001]
[1753970190735,4.169,3815.0,3814.9,4.12]
[1753970190936,4.25280197,3815.0,3814.9,4.12]
[1753970191242,1.63157,3815.0,3814.9,4.12]
[1753970191447,4.63157,3815.0,3814.9,4.12]
[1753970191635,1.63157,3815.0,3814.9,4.12]
[1753970192346,1.169,3815.0,3814.9,4.12]
[1753970192876,4.169,3815.0,3814.9,4.12]
[1753970193076,1.169,3815.0,3814.9,4.12]
[1753970193286,0.6812,3815.0,3814.9,4.12]
[1753970197041,0.55,3814.9,3814.8,2.62235531]
[1753970197346,0.1312,3815.4,3815.0,2.62118965]
[1753970197698,0.1312,3815.4,3815.1,4.119]
[1753970198598,0.55,3815.3,3815.1,4.119]
[1753970198805,0.1312,3815.4,3815.2,2.62109456]
[1753970198948,0.002,3816.2,3815.6,2.6207788]
[1753970199289,0.002,3816.2,3815.8,2.62068242]
[1753970199499,0.1332,3816.2,3815.9,2.62054705]
[1753970199661,0.55,3816.1,3816.0,6.73954507]
[1753970199861,0.55,3816.1,3816.0,4.119]
[1753970200286,0.1332,3816.2,3816.0,4.119]
[1753970200624,0.55,3816.1,3816.0,6.73953687]
[1753970200983,0.55,3816.1,3816.0,7.95593687]
[1753970201284,0.55,3816.1,3816.0,8.19073687]
[1753970201781,0.002,3816.2,3816.1,2.6204764]
[1753970202545,0.002,3816.2,3816.0,4.8961]
[1753970202749,0.002,3816.2,3816.1,2.6204764]
[1753970204783,0.002,3816.2,3816.1,4.13656694]
[1753970205275,0.002,3816.2,3816.1,3.90176694]
[1753970205476,0.002,3816.2,3816.1,4.13656694]
[1753970206407,0.002,3816.2,3816.1,3.90176694]
[1753970206611,0.002,3816.2,3816.1,3.46246694]
[1753970206807,0.002,3816.2,3816.1,6.7374764]
[1753970207884,0.002,3816.2,3816.0,0.7771]
[1753970208096,0.002,3816.2,3815.3,3.05099004]
[1753970208097,0.55,3816.1,3815.8,0.1312]
[1753970208296,0.6812,3816.1,3815.9,6.73760198]
[1753970208530,1.142,3816.1,3816.0,4.116]
[1753970208939,1.51843417,3816.1,3816.0,4.116]
[1753970209143,1.51843417,3816.1,3815.3,0.9553]
[1753970209144,1.593,3816.1,3815.3,0.9553]
[1753970209443,0.6812,3815.7,3815.6,2.62077114]
[1753970210221,0.55,3815.6,3815.5,2.62086253]
[1753970210639,0.1312,3815.7,3815.6,2.62081979]
[1753970210790,0.55,3815.6,3815.2,0.1312]
[1753970210995,0.55,3815.6,3815.5,2.62088848]
[1753970211954,0.6812,3816.1,3815.6,2.62081979]
[1753970212093,1.1322,3816.1,3815.8,2.62067048]
[1753970212491,0.6812,3816.1,3815.8,2.62062743]
[1753970212741,0.6812,3816.1,3815.8,0.7757]
[1753970212887,0.55,3815.9,3815.5,3.52778682]
[1753970213236,0.55,3815.7,3815.6,4.116]
[1753970213595,1.4618,3815.7,3815.6,4.116]
[1753970213790,1.593,3815.7,3815.6,4.116]
[1753970214226,0.6812,3815.7,3815.6,4.116]
[1753970214436,0.6812,3815.7,3815.6,6.73681979]
[1753970214793,1.1322,3815.7,3815.6,4.116]
[1753970215195,1.1322,3815.7,3815.6,6.73681979]
[1753970215420,3.002,3816.2,3815.7,2.62074561]
[1753970215421,0.1312,3816.0,3815.7,2.62074561]
[1753970215743,0.1312,3816.0,3815.9,2.62061374]
[1753970215913,0.002,3816.2,3816.1,2.6204764]
[1753970216505,0.002,3816.2,3816.1,6.7354764]
[1753970217411,0.002,3816.2,3816.1,4.115]
[1753970217612,1.003,3816.2,3816.1,4.115]
[1753970218920,1.003,3816.2,3816.1,6.7354764]
[1753970219761,1.003,3816.2,3816.1,4.115]
[1753970219964,1.003,3816.2,3816.1,6.7354764]
[1753970220164,1.003,3816.2,3816.0,2.62051918]
[1753970220463,1.1322,3816.1,3815.9,2.62060076]
[1753970220666,1.1322,3816.1,3816.0,6.73554507]
[1753970221842,0.002,3816.2,3816.1,2.6204764]
[1753970222055,0.552,3816.2,3816.1,2.6204764]
[1753970224376,1.003,3816.2,3816.0,6.73552121]
[1753970224532,1.003,3816.2,3816.1,2.6204764]
[1753970224732,1.003,3816.2,3816.0,4.115]
[1753970224733,0.9118,3816.1,3816.0,4.115]
[1753970225034,1.593,3816.1,3816.0,4.115]
[1753970225464,0.55,3816.0,3815.5,0.1312]
[1753970225672,0.55,3815.8,3815.5,0.1312]
[1753970225850,0.55,3815.6,3815.5,0.1312]
[1753970226063,0.55,3815.6,3815.5,6.73488848]
[1753970226240,0.552,3816.2,3815.7,2.62073545]
[1753970226441,0.552,3816.2,3815.8,4.114]
[1753970226752,0.55,3816.0,3815.8,6.73463269]
[1753970227172,0.451,3816.0,3815.8,4.114]
[1753970227371,0.451,3816.0,3815.8,6.73466093]
[1753970227569,1.0128,3816.2,3815.8,4.114]
[1753970227883,1.001,3815.9,3815.8,4.114]
[1753970228346,1.001,3815.9,3815.8,6.73468242]
[1753970228747,1.001,3815.9,3815.8,4.114]
[1753970229484,1.001,3815.9,3815.8,6.73468242]
[1753970229700,1.001,3815.9,3815.8,4.114]
[1753970230353,1.4618,3815.9,3815.8,4.114]
[1753970231585,0.7717,3816.0,3815.8,4.114]
[1753970231586,0.002,3816.2,3816.0,2.62053582]
[1753970231894,0.453,3816.2,3816.1,4.113]
[1753970232246,4.85370773,3816.2,3816.1,4.113]
[1753970232471,5.90130786,3816.2,3816.1,4.113]
[1753970232688,0.55,3816.1,3815.4,0.001]
[1753970232858,0.55,3816.0,3815.5,4.113]
[1753970233187,0.55,3815.8,3815.5,6.73383751]
[1753970233385,1.001,3815.8,3815.5,6.73383751]
[1753970233563,1.001,3815.8,3815.5,4.113]
[1753970234102,1.001,3815.8,3815.5,6.73388138]
[1753970234278,0.451,3815.8,3815.5,4.113]
[1753970234586,0.4608,3816.0,3815.5,4.113]
[1753970234587,0.451,3815.7,3815.5,4.113]
[1753970234902,0.451,3815.6,3815.4,0.001]
[1753970235054,0.451,3815.6,3815.5,4.112]
[1753970235588,0.451,3815.6,3815.5,6.73288848]
[1753970235787,0.451,3815.6,3815.5,4.112]
[1753970236090,0.55,3816.1,3815.5,4.112]
[1753970236265,0.1312,3815.8,3815.5,4.112]
[1753970236583,0.4847,3815.7,3815.5,4.112]
[1753970236786,0.4847,3815.6,3815.5,6.73288848]
[1753970236985,0.1312,3815.8,3815.5,6.73288848]
[1753970237193,0.1312,3815.8,3815.6,2.62079916]
[1753970237493,0.6159,3815.8,3815.7,4.112]
[1753970237860,3.23658242,3815.8,3815.4,0.001]
[1753970238089,1.25125824,3815.7,3815.5,4.112]
[1753970238347,3.87202671,3815.7,3815.5,4.112]
[1753970238455,2.94442671,3815.7,3815.5,4.112]
[1753970238656,3.67961979,3815.6,3815.5,4.112]
[1753970238974,3.67961979,3815.6,3815.4,0.001]
[1753970238975,3.44468848,3815.5,3815.4,0.001]
[1753970239182,5.66707851,3815.5,3815.4,0.001]
[1753970239501,12.22807851,3815.5,3815.4,4.113]
[1753970240153,15.22807851,3815.5,3815.4,4.113]
[1753970241700,15.22807851,3815.5,3815.4,0.001]
[1753970242201,15.22807851,3815.5,3815.4,1e-08]
[1753970242396,15.22807851,3815.5,3814.9,1e-08]
[1753970242397,6.94203197,3815.0,3814.9,1e-08]
[1753970242599,23.67767795,3815.0,3814.9,1e-08]
[1753970243105,24.73987454,3815.0,3814.9,1e-08]
[1753970246517,28.85187454,3815.0,3814.9,1e-08]
[1753970249070,6.95760068,3814.9,3814.8,1e-08]
[1753970249314,7.88520068,3814.9,3814.8,1e-08]
[1753970249494,10.47108434,3814.9,3814.8,1e-08]
[1753970249709,6.94880684,3814.6,3814.5,1e-08]
[1753970249913,17.62480684,3814.6,3814.5,1e-08]
[1753970250113,18.55240684,3814.6,3814.5,1e-08]
[1753970250307,14.44040684,3814.6,3814.5,1e-08]
[1753970250473,20.91050848,3814.6,3814.5,1e-08]
[1753970250898,16.35560848,3814.6,3814.5,1e-08]
[1753970251111,20.91050848,3814.6,3814.5,1e-08]
[1753970251416,20.91050848,3814.6,3814.1,0.041]
[1753970251417,3.97618176,3814.2,3814.1,0.041]
[1753970251607,27.33522774,3814.2,3814.1,0.041]
[1753970251915,6.99648799,3813.9,3813.1,4.152]
[1753970252110,11.23868799,3813.9,3813.1,4.152]
[1753970252476,12.16628799,3813.9,3813.1,4.152]
[1753970252676,12.16628799,3813.9,3813.1,0.04]
[1753970253377,6.30318799,3813.9,3813.1,0.04]
[1753970253585,9.65090748,3813.9,3813.1,0.04]
[1753970254231,10.48970748,3813.9,3813.1,0.04]
[1753970255320,3.17246931,3813.2,3813.1,0.04]
[1753970255521,22.37889457,3813.2,3813.1,0.04]
[1753970255737,23.30649457,3813.2,3813.1,0.04]
[1753970255879,3.17267565,3812.9,3812.8,0.001]
[1753970256084,6.97107565,3812.9,3812.8,0.001]
[1753970256307,3.17295081,3812.5,3812.4,0.001]
[1753970256492,13.54155335,3812.5,3812.4,0.001]
[1753970256684,18.54895081,3812.5,3812.4,1e-08]
[1753970257026,18.54895081,3812.5,3811.3,0.001]
[1753970257027,21.13483447,3812.5,3812.1,1e-08]
[1753970257208,6.17315723,3812.2,3812.1,1e-08]
[1753970257379,11.06525723,3812.2,3812.1,1e-08]
[1753970257584,11.99285723,3812.2,3812.1,1e-08]
[1753970257786,13.35970506,3812.2,3812.1,1e-08]
[1753970263890,20.44970506,3812.2,3812.1,1e-08]
[1753970264124,3.98950782,3811.4,3811.3,1e-08]
[1753970264329,3.98950782,3811.4,3811.1,0.04]
[1753970264330,6.1738455,3811.2,3811.1,1e-08]
[1753970264530,11.0925455,3811.2,3811.1,1e-08]
[1753970264825,12.0201455,3811.2,3811.1,1e-08]
[1753970265426,12.1513455,3811.2,3811.1,1e-08]
[1753970266531,7.5964455,3811.2,3811.1,1e-08]
[1753970266823,13.45349215,3811.2,3811.1,1e-08]
[1753970267024,8.85679215,3811.2,3811.1,1e-08]
[1753970267689,8.05009215,3811.2,3811.1,1e-08]
[1753970268410,0.1312,3811.2,3811.1,1.54930001]
[1753970268939,0.1312,3811.2,3811.1,4.17321436]
[1753970269147,6.569,3811.4,3811.1,4.17321436]
[1753970269288,0.1312,3811.5,3811.4,0.7776]
[1753970269489,0.1312,3811.5,3811.4,1.4863]
[1753970269902,0.1312,3811.5,3811.4,4.11000782]
[1753970270133,3.0,3812.2,3811.4,1.4863]
[1753970270309,0.1312,3811.6,3811.5,2.62363898]
[1753970270509,6.566,3812.8,3812.1,0.7685]
[1753970270711,0.1312,3812.6,3812.4,0.7685]
[1753970270904,0.1312,3812.6,3812.5,3.33165081]
[1753970271627,0.1312,3812.6,3812.5,0.7087]
[1753970272834,0.55,3812.5,3812.4,0.7685]
[1753970273240,0.55,3812.5,3812.4,1.4772]
[1753970273819,0.55,3812.5,3812.4,1.2424]
[1753970274246,0.55,3812.3,3812.2,4.111]
[1753970274400,0.55,3812.3,3812.0,1.2472]
[1753970274735,0.55,3811.9,3811.7,0.8067]
[1753970274920,0.1312,3811.8,3811.7,0.8067]
[1753970275496,0.1312,3811.8,3811.7,1.2806]
[1753970275697,0.1312,3811.8,3811.7,1.5154]
[1753970276705,0.1312,3811.8,3811.7,1.2806]
[1753970277527,0.1312,3811.8,3811.7,3.90410132]
[1753970277740,0.1312,3811.8,3811.7,1.2806]
[1753970278822,0.1312,3811.8,3811.7,0.8067]
[1753970279731,0.6812,3811.8,3811.7,0.8067]
[1753970280449,0.1312,3811.8,3811.7,4.70144132]
[1753970280746,0.002,3812.6,3812.3,2.62307939]
[1753970280942,0.002,3812.6,3812.0,2.62324534]
[1753970280943,0.002,3812.6,3812.4,4.109]
[1753970281246,0.2456003,3812.6,3812.4,4.109]
[1753970281448,0.2456003,3812.6,3812.5,3.93725081]
[1753970281449,0.002,3812.6,3812.5,3.93725081]
[1753970281658,0.002,3812.6,3812.5,4.99431081]
[1753970282937,0.002,3812.6,3812.5,5.12551081]
[1753970283251,1e-08,3812.6,3812.5,7.99431081]
[1753970283448,1e-08,3812.6,3812.5,8.12551081]
[1753970284164,0.1312,3814.1,3813.8,3.40135674]
[1753970284363,0.24411978,3814.0,3813.8,7.50935674]
[1753970284646,0.24411978,3814.0,3813.8,8.91179674]
[1753970284853,0.28411978,3813.9,3813.8,8.91179674]
[1753970285166,0.04,3813.9,3813.8,8.91179674]
[1753970285342,0.28411978,3813.9,3813.8,8.91179674]
[1753970285659,0.28411978,3813.9,3813.8,1.94694]
[1753970285825,0.52824001,3813.9,3813.8,4.8873]
[1753970286428,4.618128,3813.9,3813.8,4.108]
[1753970286643,2.62205745,3813.8,3813.5,0.1312]
[1753970286822,0.48824001,3813.7,3813.6,4.108]
[1753970287018,0.1312,3813.6,3813.4,0.7793]
[1753970287213,0.24411978,3813.5,3813.4,0.7793]
[1753970287416,0.48824001,3813.5,3813.4,0.7793]
[1753970287854,0.48824001,3813.5,3813.4,4.8863]
[1753970288021,0.48824001,3813.5,3813.4,0.7793]
[1753970288221,0.48824001,3813.5,3813.4,4.8863]
[1753970288764,0.48848034,3813.5,3813.4,4.8863]
[1753970289750,0.48848034,3813.5,3813.4,7.50863177]
[1753970290065,0.48848034,3813.5,3813.1,7.1225]
[1753970290372,0.4821,3813.5,3813.1,7.1225]
[1753970290567,0.4821,3813.5,3813.2,4.106]
[1753970290737,1.0258,3813.9,3813.3,4.106]
[1753970290738,3.10443603,3813.4,3813.3,4.106]
[1753970290942,3.10443603,3813.4,3813.1,6.303]
[1753970290943,1.0491,3813.4,3813.1,6.303]
[1753970291144,2.62246931,3813.2,3813.1,6.303]
[1753970291345,0.92687719,3813.2,3813.1,10.409]
[1753970291547,0.1312,3813.2,3813.1,10.409]
[1753970291750,0.1312,3813.2,3813.1,13.03153809]
[1753970292081,3.17226301,3813.5,3813.1,10.409]
[1753970292375,0.4821,3813.2,3813.1,6.303]
[1753970292571,6.563,3813.8,3813.1,10.409]
[1753970292770,3.17213777,3813.7,3813.1,10.409]
[1753970292935,0.1312,3813.3,3813.1,10.409]
[1753970293127,0.1312,3813.3,3813.1,13.03153393]
[1753970293343,0.1312,3813.3,3813.1,10.409]
[1753970293556,0.1312,3813.3,3813.1,13.03152393]
[1753970293766,0.1312,3813.3,3813.1,6.303]
[1753970294033,0.1312,3813.3,3813.2,4.105]
[1753970294793,0.6133,3813.3,3813.2,4.105]
[1753970294946,4.22155026,3813.3,3813.2,4.105]
[1753970295157,1.5991,3813.3,3813.2,4.105]
[1753970295575,1.1633,3813.3,3813.1,6.303]
[1753970295890,0.6812,3813.3,3813.2,4.105]
[1753970296443,3.78350054,3813.3,3813.2,4.105]
[1753970296661,4.24440054,3813.3,3813.2,4.105]
[1753970296862,1.1611,3813.3,3813.2,4.105]
[1753970297795,3.78350054,3813.3,3813.2,4.105]
[1753970297999,2.62246931,3813.2,3813.1,6.303]
[1753970298297,0.9388,3813.2,3813.1,10.407]
[1753970298456,4.11126931,3813.2,3813.1,6.303]
[1753970298855,4.11126931,3813.2,3813.1,10.407]
[1753970299061,5.56700517,3813.2,3813.1,10.407]
[1753970299274,5.56700517,3813.2,3812.4,0.7781]
[1753970299275,2.94453586,3813.2,3812.4,0.7781]
[1753970299482,2.6228221,3812.7,3812.5,4.104]
[1753970299643,3.1728221,3812.7,3812.6,4.104]
[1753970299844,3.6337221,3812.7,3812.6,4.104]
[1753970300086,3.7649221,3812.7,3812.6,4.104]
[1753970300263,3.7649221,3812.7,3811.9,2.62329805]
[1753970300264,2.62292102,3812.6,3811.9,2.62329805]
[1753970300470,0.1312,3812.4,3811.8,0.1312]
[1753970300692,0.1312,3812.2,3811.9,4.104]
[1753970300857,0.6091,3812.2,3811.9,4.104]
[1753970301455,0.55,3812.1,3811.7,0.7959]
[1753970301685,0.1312,3811.8,3811.7,0.7959]
[1753970301845,0.1312,3811.8,3811.7,4.8999]
[1753970304282,0.1312,3811.8,3811.6,6.301]
[1753970304283,0.6091,3811.8,3811.6,6.301]
[1753970304488,0.6091,3811.8,3811.7,4.103]
[1753970304642,0.1312,3811.8,3811.7,4.103]
[1753970304849,0.1312,3811.8,3811.6,8.92452699]
[1753970305048,0.1312,3811.8,3811.7,4.104]
[1753970305493,0.1312,3811.8,3811.6,8.92455384]
[1753970305783,0.1312,3811.8,3811.7,4.104]
[1753970305989,0.1312,3811.8,3811.7,4.103]
[1753970306393,0.1312,3811.8,3811.7,6.72650132]
[1753970306582,0.1312,3811.8,3811.7,2.62350132]
[1753970306765,0.1312,3811.8,3811.7,4.103]
[1753970306972,0.1312,3811.8,3811.7,6.72650132]
[1753970307291,0.1312,3811.8,3811.7,4.103]
[1753970308100,4.24343449,3811.8,3811.7,4.103]
[1753970308270,2.38966826,3811.8,3811.7,4.103]
[1753970308470,3.17350132,3811.7,3811.6,6.301]
[1753970308674,1.4888,3811.7,3811.6,10.404]
[1753970310207,1.4888,3811.7,3811.6,6.301]
[1753970310498,1.4888,3811.7,3811.6,10.404]
[1753970310499,1.0279,3811.7,3811.6,10.404]
[1753970310997,1.4888,3811.7,3811.6,10.404]
[1753970311389,0.55,3811.9,3811.6,13.02757015]
[1753970311568,0.1312,3811.7,3811.6,10.404]
[1753970313813,0.1312,3811.7,3811.6,13.02757015]
[1753970313997,0.55,3812.2,3811.7,0.7756]
[1753970314191,0.4779,3812.1,3811.8,4.102]
[1753970314606,0.1312,3811.9,3811.8,4.102]
[1753970314922,0.6091,3811.9,3811.8,4.102]
[1753970315618,0.1312,3811.9,3811.8,4.102]
[1753970316191,4.24340553,3811.9,3811.8,4.102]
[1753970317036,1.62,3811.9,3811.8,4.102]
[1753970317413,1.1591,3811.9,3811.8,4.102]
[1753970317791,0.6812,3811.9,3811.8,4.102]
[1753970318688,4.24336367,3811.9,3811.6,6.301]
[1753970318904,0.1312,3811.7,3811.6,6.301]
[1753970319115,0.6091,3811.7,3811.6,10.404]
[1753970319686,0.6091,3811.7,3811.6,6.302]
[1753970319687,4.24350132,3811.7,3811.6,6.302]
[1753970319917,4.24350132,3811.7,3811.6,10.403]
[1753970319918,5.08120132,3811.7,3811.6,10.403]
[1753970320120,8.85165844,3811.7,3811.6,6.302]
[1753970320322,8.85165844,3811.7,3811.6,10.403]
[1753970321429,7.55305844,3811.7,3811.6,10.403]
[1753970321641,8.01395844,3811.7,3811.6,10.403]
[1753970322209,5.39045712,3811.7,3811.6,4.102]
[1753970322398,8.01395844,3811.7,3811.6,4.102]
[1753970323237,3.6812,3811.7,3811.6,4.102]
[1753970323650,6.78260132,3811.7,3811.6,4.102]
[1753970324695,7.24350132,3811.7,3811.6,4.102]
[1753970325409,0.1312,3811.7,3811.6,4.102]
[1753970326009,0.1312,3811.7,3811.6,6.72557015]
[1753970326212,6.566,3812.4,3811.6,4.8064]
[1753970326429,0.1312,3811.8,3811.6,4.8064]
[1753970326726,0.1312,3811.8,3811.7,3.093058]
[1753970326935,0.4897,3812.9,3811.7,0.7044]
[1753970327241,0.1312,3812.3,3812.2,2.62315495]
[1753970327433,0.1312,3812.3,3812.2,6.72315495]
[1753970327997,0.1312,3812.3,3812.2,4.1]
[1753970329046,1.6051,3812.3,3812.2,4.1]
[1753970329345,2.0279072,3812.3,3812.2,4.1]
[1753970329843,2.0279072,3812.3,3811.8,0.7643]
[1753970330045,0.1312,3812.0,3811.9,4.099]
[1753970330450,9.18782064,3812.7,3811.9,4.82963363]
[1753970330451,6.565,3812.7,3811.9,4.82963363]
[1753970330753,0.1312,3812.4,3812.2,2.62309023]
[1753970330959,0.1312,3812.4,3812.3,6.72208842]
[1753970331262,0.37611071,3812.6,3812.3,4.099]
[1753970331417,0.1312,3812.6,3812.3,6.72208254]
[1753970331611,0.1312,3812.6,3812.3,4.099]
[1753970331812,0.4897,3812.5,3812.4,4.099]
[1753970332292,0.1312,3812.5,3812.4,4.099]
[1753970334935,0.6209,3812.5,3812.4,4.099]
[1753970335361,0.1312,3812.5,3812.4,4.099]
[1753970336930,0.6209,3812.5,3812.4,4.098]
[1753970337130,1.1709,3812.5,3812.4,4.098]
[1753970338435,1.1709,3812.5,3812.4,4.097]
[1753970338835,3.79385081,3812.5,3812.4,4.097]
[1753970339536,1.1709,3812.5,3812.4,4.097]
[1753970340267,0.1312,3812.7,3812.4,4.9249]
[1753970340466,0.1312,3812.7,3812.4,7.54790809]
[1753970340964,0.002,3812.6,3812.4,7.54790809]
[1753970341389,0.002,3812.6,3812.5,2.62295081]
[1753970341526,0.002,3812.6,3812.5,3.11878031]
[1753970341721,0.002,3812.6,3812.5,3.45855081]
[1753970341975,0.002,3812.6,3812.5,6.85015081]
[1753970342557,0.002,3812.6,3812.5,7.31975081]
[1753970342729,0.002,3812.6,3812.5,7.67432694]
[1753970343125,0.002,3812.6,3812.5,6.71895081]
[1753970344325,0.002,3812.6,3812.5,2.62295081]
[1753970344733,0.002,3812.6,3812.5,6.71895081]
[1753970344934,0.4917,3812.6,3812.2,2.62315631]
[1753970345187,0.4897,3812.5,3812.1,0.9398]
[1753970345479,0.6209,3812.4,3812.3,4.095]
[1753970345627,0.6209,3812.4,3812.1,0.8086]
[1753970345831,0.9239,3812.3,3812.2,4.095]
[1753970346362,1.6051,3812.3,3811.8,0.8086]
[1753970346566,0.1312,3812.1,3811.6,0.8386]
[1753970346861,0.1312,3811.9,3811.7,4.095]
[1753970347399,0.1312,3811.9,3811.7,6.7184976]
[1753970347400,0.6209,3811.9,3811.7,6.7184976]
[1753970347783,0.1312,3811.9,3811.8,2.62343249]
[1753970347981,0.1312,3811.9,3811.7,6.71848001]
[1753970348307,0.1312,3811.9,3811.8,2.62343249]
[1753970348701,0.1312,3811.9,3811.8,6.71843249]
[1753970348868,7.0557,3812.5,3812.0,2.62329236]
[1753970349068,0.55,3812.4,3812.1,4.095]
[1753970349499,0.1312,3812.2,3812.1,4.095]
[1753970349707,0.6209,3812.2,3812.1,4.095]
[1753970350405,0.1312,3812.2,3812.1,4.095]
[1753970351209,0.1332,3812.6,3812.1,5.81089547]
[1753970351507,0.1332,3812.6,3812.5,2.62295081]
[1753970351682,0.002,3812.6,3812.5,7.54188031]
[1753970351887,0.002,3812.6,3812.5,7.88895534]
[1753970352114,0.002,3812.6,3812.5,8.59335534]
[1753970352319,0.002,3812.6,3812.5,8.72455534]
[1753970352914,0.002,3812.6,3812.5,8.48975534]
[1753970353265,0.002,3812.6,3812.5,8.02015534]
[1753970355315,0.002,3812.6,3812.5,3.92615534]
[1753970355522,0.002,3812.6,3812.5,8.01915534]
[1753970359109,0.002,3812.6,3812.5,8.69425534]
[1753970359619,0.002,3812.6,3812.5,8.45945534]
[1753970360328,0.002,3812.6,3812.5,8.01915534]
[1753970360619,0.002,3812.6,3812.5,8.01815534]
[1753970361913,0.002,3812.6,3812.5,8.69325534]
[1753970364422,0.002,3812.6,3812.5,8.01815534]
[1753970364629,0.002,3812.6,3812.5,8.69325534]
[1753970364786,0.002,3812.6,3812.5,14.47575317]
[1753970365690,0.002,3812.6,3812.5,14.24095317]
[1753970366629,0.002,3812.6,3812.5,3.92615534]
[1753970366801,0.4942,3812.6,3812.5,8.01615534]
[1753970367004,0.002,3812.6,3812.5,8.01615534]
[1753970367486,0.002,3812.6,3812.5,13.79865317]
[1753970368095,0.5832,3813.3,3813.2,3.45516931]
[1753970368096,0.002,3813.3,3813.2,3.45516931]
[1753970368418,1e-08,3813.3,3813.2,17.58514127]
[1753970368613,1e-08,3813.3,3813.2,18.26024127]
[1753970368805,1e-08,3813.3,3813.2,27.04462745]
[1753970371849,1e-08,3813.3,3813.2,13.49514127]
[1753970372155,1e-08,3813.3,3813.2,17.58314127]
[1753970373852,1e-08,3813.3,3813.2,13.49514127]
[1753970374054,0.94220001,3813.3,3813.2,14.58314127]
[1753970374422,0.94220001,3813.3,3813.2,10.49514127]
[1753970374718,0.94220001,3813.3,3813.2,13.75044127]
[1753970375454,0.94220001,3813.3,3813.2,9.66244127]
[1753970375685,0.94220001,3813.3,3813.2,13.75044127]
[1753970376019,0.94220001,3813.3,3813.2,9.66244127]
[1753970376224,0.94220001,3813.3,3813.2,13.01046931]
[1753970377844,0.94220001,3813.3,3813.2,10.388]
[1753970378048,0.94220001,3813.3,3813.2,13.01046931]
[1753970378889,0.94220001,3813.3,3813.2,6.301]
[1753970379027,0.94220001,3813.3,3813.2,10.388]
[1753970379222,4.36070055,3813.3,3813.2,6.301]
[1753970379423,5.74351788,3813.3,3813.2,10.388]
[1753970380265,3.12111734,3813.3,3813.2,10.388]
[1753970380464,5.04190055,3813.3,3813.2,10.388]
[1753970381746,2.41950001,3813.3,3813.2,10.388]
[1753970381935,5.04190055,3813.3,3813.2,10.388]
[1753970382343,5.04190055,3813.3,3813.2,6.301]
[1753970382549,5.04190055,3813.3,3813.2,10.388]
[1753970382754,2.41950001,3813.3,3813.2,10.388]
[1753970383343,5.04190055,3813.3,3813.2,10.388]
[1753970383869,5.04190055,3813.3,3813.2,6.301]
[1753970384070,6.46491847,3813.3,3813.2,10.388]
[1753970384432,6.46491847,3813.3,3813.2,10.387]
[1753970385475,6.46491847,3813.3,3813.2,6.301]
[1753970385792,6.46491847,3813.3,3813.2,10.387]
[1753970386637,9.46491847,3813.3,3813.2,4.086]
[1753970386836,3.17246931,3813.2,3813.1,0.001]
[1753970387037,7.01022595,3813.2,3813.1,0.001]
[1753970387289,7.01022595,3813.2,3813.1,4.087]
[1753970388148,7.01022595,3813.2,3813.1,0.001]
[1753970388340,7.01022595,3813.2,3813.1,4.087]
[1753970389670,7.01022595,3813.2,3813.1,0.001]
[1753970389992,7.01022595,3813.2,3813.1,4.087]
[1753970392550,7.01022595,3813.2,3813.1,4.086]
[1753970393646,7.01022595,3813.2,3813.1,0.001]
[1753970393847,10.01022595,3813.2,3813.1,4.086]
[1753970394575,10.01022595,3813.2,3813.1,0.001]
[1753970395479,6.96277565,3812.9,3812.8,0.001]
[1753970395682,15.18119539,3812.9,3812.8,0.001]
[1753970396052,16.08279539,3812.9,3812.8,0.001]
[1753970396858,15.48379539,3812.9,3812.8,0.001]
[1753970397061,16.08279539,3812.9,3812.8,0.001]
[1753970398678,16.08279539,3812.9,3812.4,0.001]